[Event "Late-Titled-Tuesday-Blitz-June-25-2024"]
[Site "Chess.com"]
[Date "2024.06.25"]
[Round "5"]
[White "FairChess_on_YouTube"]
[Black "Dedic8"]
[Result "1-0"]
[WhiteElo "3091"]
[BlackElo "2937"]
[TimeControl "180+1"]
[EndTime "14:53:08 PDT"]
[Termination "FairChess_on_YouTube won by resignation"]

1. d4 {[%clk 0:03:00.9]} 1... Nf6 {[%clk 0:03:00.1]} 2. c4 {[%clk 0:03:00.8]}
2... e6 {[%clk 0:03:00.5]} 3. Nf3 {[%clk 0:03:00.3]} 3... d5 {[%clk 0:03:00.9]}
4. e3 {[%clk 0:02:58]} 4... c5 {[%clk 0:02:50.2]} 5. cxd5 {[%clk 0:02:57.3]}
5... exd5 {[%clk 0:02:49.4]} 6. Bb5+ {[%clk 0:02:56.2]} 6... Nc6 {[%clk
0:02:48.2]} 7. O-O {[%clk 0:02:55.5]} 7... cxd4 {[%clk 0:02:39.8]} 8. exd4
{[%clk 0:02:53.8]} 8... Bd6 {[%clk 0:02:06.2]} 9. Re1+ {[%clk 0:02:49.6]} 9...
Be6 {[%clk 0:02:03.2]} 10. Nc3 {[%clk 0:02:45.9]} 10... O-O {[%clk 0:01:58.5]}
11. Bg5 {[%clk 0:02:45.9]} 11... h6 {[%clk 0:01:55.9]} 12. Bh4 {[%clk
0:02:45.5]} 12... Be7 {[%clk 0:01:50.8]} 13. Ne5 {[%clk 0:02:34.1]} 13... Rc8
{[%clk 0:01:39.3]} 14. Bxc6 {[%clk 0:02:29.1]} 14... bxc6 {[%clk 0:01:39.2]} 15.
Na4 {[%clk 0:02:26.3]} 15... Re8 {[%clk 0:01:03.2]} 16. Rc1 {[%clk 0:02:24.9]}
16... Qd6 {[%clk 0:00:41.1]} 17. Bg3 {[%clk 0:02:11.2]} 17... Ne4 {[%clk
0:00:41.5]} 18. Nxc6 {[%clk 0:02:02.5]} 18... Nxg3 {[%clk 0:00:39.3]} 19. Nxe7+
{[%clk 0:02:02.5]} 19... Qxe7 {[%clk 0:00:32.7]} 20. hxg3 {[%clk 0:01:52.9]}
20... Qb4 {[%clk 0:00:32.1]} 21. Rxc8 {[%clk 0:01:34.1]} 21... Rxc8 {[%clk
0:00:33]} 22. b3 {[%clk 0:01:28.7]} 22... Bg4 {[%clk 0:00:32.9]} 23. f3 {[%clk
0:01:24.2]} 23... Bf5 {[%clk 0:00:30.5]} 24. Nc5 {[%clk 0:01:19.5]} 24... h5
{[%clk 0:00:29.1]} 25. Re2 {[%clk 0:01:13.6]} 25... Qc3 {[%clk 0:00:27.3]} 26.
Qd2 {[%clk 0:01:12.5]} 26... Qxd2 {[%clk 0:00:16.1]} 27. Rxd2 {[%clk 0:01:13.4]}
27... a5 {[%clk 0:00:13.7]} 28. Kf2 {[%clk 0:01:13.3]} 28... Kf8 {[%clk
0:00:13.9]} 29. Re2 {[%clk 0:01:12.5]} 29... Rb8 {[%clk 0:00:12.9]} 30. Re5
{[%clk 0:01:10.3]} 30... Bb1 {[%clk 0:00:12.5]} 31. Nd7+ {[%clk 0:01:10]} 1-0

[Event "Late-Titled-Tuesday-Blitz-June-25-2024"]
[Site "Chess.com"]
[Date "2024.06.25"]
[Round "5"]
[White "anthonydrayton"]
[Black "Roedor"]
[Result "0-1"]
[WhiteElo "2115"]
[BlackElo "2402"]
[TimeControl "180+1"]
[EndTime "14:53:11 PDT"]
[Termination "Roedor won by checkmate"]

1. e4 {[%clk 0:02:59.3]} 1... e5 {[%clk 0:02:57.1]} 2. Nf3 {[%clk 0:02:59.4]}
2... Nc6 {[%clk 0:02:56.3]} 3. d4 {[%clk 0:02:57.8]} 3... exd4 {[%clk
0:02:57.2]} 4. Bc4 {[%clk 0:02:55.9]} 4... Bc5 {[%clk 0:02:56.8]} 5. c3 {[%clk
0:02:55.1]} 5... Nf6 {[%clk 0:02:53.5]} 6. e5 {[%clk 0:02:55.3]} 6... d5 {[%clk
0:02:52.8]} 7. Bb5 {[%clk 0:02:55.7]} 7... Ne4 {[%clk 0:02:52.8]} 8. Nxd4 {[%clk
0:02:50.9]} 8... O-O {[%clk 0:02:50.6]} 9. Bxc6 {[%clk 0:02:48.7]} 9... bxc6
{[%clk 0:02:51.5]} 10. O-O {[%clk 0:02:48.8]} 10... f6 {[%clk 0:02:45.3]} 11.
exf6 {[%clk 0:02:21.3]} 11... Qxf6 {[%clk 0:02:44.6]} 12. Be3 {[%clk 0:02:20.7]}
12... Ba6 {[%clk 0:02:38]} 13. b4 {[%clk 0:02:10.9]} 13... Bxf1 {[%clk 0:02:36]}
14. Qxf1 {[%clk 0:02:08.9]} 14... Bd6 {[%clk 0:02:35.1]} 15. Nf3 {[%clk
0:02:01.9]} 15... Rae8 {[%clk 0:02:29.9]} 16. a4 {[%clk 0:01:59.9]} 16... Nxc3
{[%clk 0:02:25]} 17. Nxc3 {[%clk 0:01:54.6]} 17... Qxc3 {[%clk 0:02:24.5]} 18.
Bxa7 {[%clk 0:01:52.8]} 18... Rxf3 {[%clk 0:02:20.5]} 19. gxf3 {[%clk
0:01:49.2]} 19... Qe5 {[%clk 0:02:20.6]} 20. f4 {[%clk 0:01:36]} 20... Qxf4
{[%clk 0:02:18.9]} 21. Qh3 {[%clk 0:01:30.9]} 21... Re5 {[%clk 0:01:48.9]} 22.
Be3 {[%clk 0:01:24.3]} 22... Qxb4 {[%clk 0:01:40.3]} 23. Qc8+ {[%clk 0:01:22.2]}
23... Kf7 {[%clk 0:01:40.3]} 24. Qd7+ {[%clk 0:01:21.8]} 24... Kg6 {[%clk
0:01:29.7]} 25. Rd1 {[%clk 0:01:01.3]} 25... Qxa4 {[%clk 0:01:22.5]} 26. Rd4
{[%clk 0:00:51.9]} 26... Rg5+ {[%clk 0:01:19.1]} 27. Kf1 {[%clk 0:00:27.2]}
27... Qb5+ {[%clk 0:01:11.3]} 28. Ke1 {[%clk 0:00:26]} 28... Rg1+ {[%clk
0:01:06.2]} 29. Kd2 {[%clk 0:00:25.6]} 29... Qb2+ {[%clk 0:01:03.4]} 30. Kd3
{[%clk 0:00:22.3]} 30... Rd1+ {[%clk 0:01:03.6]} 31. Bd2 {[%clk 0:00:21.5]}
31... Qxd2# {[%clk 0:01:02.4]} 0-1

[Event "Late-Titled-Tuesday-Blitz-June-25-2024"]
[Site "Chess.com"]
[Date "2024.06.25"]
[Round "5"]
[White "Engima32"]
[Black "akanga001"]
[Result "1-0"]
[WhiteElo "2420"]
[BlackElo "2192"]
[TimeControl "180+1"]
[EndTime "14:53:13 PDT"]
[Termination "Engima32 won by checkmate"]

1. e4 {[%clk 0:02:55.1]} 1... e6 {[%clk 0:02:59]} 2. d4 {[%clk 0:02:52.7]} 2...
d5 {[%clk 0:02:59.5]} 3. Nc3 {[%clk 0:02:53.5]} 3... Nf6 {[%clk 0:02:58.8]} 4.
Bg5 {[%clk 0:02:50.6]} 4... Be7 {[%clk 0:02:57.9]} 5. Bd3 {[%clk 0:02:45]} 5...
h6 {[%clk 0:02:53.5]} 6. Bxf6 {[%clk 0:02:41.2]} 6... Bxf6 {[%clk 0:02:54.4]} 7.
e5 {[%clk 0:02:41.5]} 7... Be7 {[%clk 0:02:53.8]} 8. Qf3 {[%clk 0:02:41.2]} 8...
O-O {[%clk 0:02:52]} 9. O-O-O {[%clk 0:02:39.8]} 9... c5 {[%clk 0:02:52.5]} 10.
Nge2 {[%clk 0:02:40.1]} 10... Nc6 {[%clk 0:02:52.3]} 11. Qe3 {[%clk 0:02:34.3]}
11... c4 {[%clk 0:02:48.9]} 12. Bxc4 {[%clk 0:02:33]} 12... dxc4 {[%clk
0:02:48.4]} 13. d5 {[%clk 0:02:30.4]} 13... exd5 {[%clk 0:02:47.9]} 14. Nxd5
{[%clk 0:02:31.3]} 14... Qa5 {[%clk 0:02:42.1]} 15. Kb1 {[%clk 0:02:28.8]} 15...
Bd8 {[%clk 0:02:33.7]} 16. Nec3 {[%clk 0:02:25]} 16... Be6 {[%clk 0:02:29.8]}
17. Qe4 {[%clk 0:02:05]} 17... b5 {[%clk 0:02:27.7]} 18. f4 {[%clk 0:02:02.3]}
18... b4 {[%clk 0:02:24.2]} 19. Nxb4 {[%clk 0:01:55.6]} 19... Nxb4 {[%clk
0:02:17.6]} 20. Qxa8 {[%clk 0:01:55.1]} 20... Bb6 {[%clk 0:01:59.1]} 21. Qe4
{[%clk 0:01:50.5]} 21... g6 {[%clk 0:01:56.4]} 22. Rd2 {[%clk 0:01:39.6]} 22...
Rc8 {[%clk 0:01:52.6]} 23. a3 {[%clk 0:01:34.6]} 23... Nc6 {[%clk 0:01:44.1]}
24. Rhd1 {[%clk 0:01:29.8]} 24... Bf5 {[%clk 0:01:43.2]} 25. Qe2 {[%clk
0:01:21.7]} 25... Qc5 {[%clk 0:01:27.5]} 26. h3 {[%clk 0:01:13.7]} 26... h5
{[%clk 0:01:25.9]} 27. g4 {[%clk 0:01:13]} 27... hxg4 {[%clk 0:01:25.2]} 28.
hxg4 {[%clk 0:01:13.9]} 28... Be6 {[%clk 0:01:25.4]} 29. Ne4 {[%clk 0:01:11.3]}
29... Qe3 {[%clk 0:01:20.6]} 30. Nf6+ {[%clk 0:01:11.3]} 30... Kg7 {[%clk
0:01:19.5]} 31. Rh1 {[%clk 0:01:07.2]} 31... Qxe2 {[%clk 0:01:13.3]} 32. Rxe2
{[%clk 0:01:06.4]} 32... Rc7 {[%clk 0:00:55.3]} 33. Rh7+ {[%clk 0:01:01.9]}
33... Kf8 {[%clk 0:00:54.4]} 34. Rh8+ {[%clk 0:01:02.8]} 34... Kg7 {[%clk
0:00:32.9]} 35. Rg8+ {[%clk 0:00:57.8]} 35... Kh6 {[%clk 0:00:32.2]} 36. g5#
{[%clk 0:00:58.7]} 1-0

[Event "Late-Titled-Tuesday-Blitz-June-25-2024"]
[Site "Chess.com"]
[Date "2024.06.25"]
[Round "5"]
[White "JuliaEfremova"]
[Black "boguszp"]
[Result "1-0"]
[WhiteElo "2301"]
[BlackElo "1973"]
[TimeControl "180+1"]
[EndTime "14:53:17 PDT"]
[Termination "JuliaEfremova won on time"]

1. e4 {[%clk 0:03:00.9]} 1... e6 {[%clk 0:02:57.9]} 2. Nf3 {[%clk 0:02:49]} 2...
d5 {[%clk 0:02:57.1]} 3. e5 {[%clk 0:02:48.1]} 3... c5 {[%clk 0:02:56.2]} 4. b4
{[%clk 0:02:46.4]} 4... cxb4 {[%clk 0:02:54.4]} 5. a3 {[%clk 0:02:44.9]} 5...
Nc6 {[%clk 0:02:51.9]} 6. d4 {[%clk 0:02:37.9]} 6... Qa5 {[%clk 0:02:40.5]} 7.
Bd3 {[%clk 0:02:16.7]} 7... b3+ {[%clk 0:02:23.9]} 8. c3 {[%clk 0:02:13.9]} 8...
Qb6 {[%clk 0:02:14.2]} 9. Bb2 {[%clk 0:02:06.2]} 9... Na5 {[%clk 0:02:04.7]} 10.
Nbd2 {[%clk 0:02:01]} 10... Bd7 {[%clk 0:02:00.2]} 11. O-O {[%clk 0:01:58.9]}
11... Ba4 {[%clk 0:01:50.8]} 12. Qe2 {[%clk 0:01:40.1]} 12... Rc8 {[%clk
0:01:40.4]} 13. c4 {[%clk 0:01:15.6]} 13... dxc4 {[%clk 0:01:29.6]} 14. Nxc4
{[%clk 0:01:11.3]} 14... Nxc4 {[%clk 0:01:23.3]} 15. Bxc4 {[%clk 0:01:11.4]}
15... Ne7 {[%clk 0:01:00.3]} 16. Rac1 {[%clk 0:01:03.9]} 16... Nc6 {[%clk
0:00:54.5]} 17. d5 {[%clk 0:01:01.8]} 17... Na5 {[%clk 0:00:34.9]} 18. dxe6
{[%clk 0:00:59.8]} 18... Nxc4 {[%clk 0:00:31.1]} 19. exf7+ {[%clk 0:00:59.8]}
19... Kxf7 {[%clk 0:00:25.8]} 20. Rxc4 {[%clk 0:00:56.2]} 20... Be7 {[%clk
0:00:19.3]} 21. e6+ {[%clk 0:00:49]} 1-0

[Event "Late-Titled-Tuesday-Blitz-June-25-2024"]
[Site "Chess.com"]
[Date "2024.06.25"]
[Round "5"]
[White "Chessdude1987"]
[Black "manitodeplomo"]
[Result "0-1"]
[WhiteElo "2360"]
[BlackElo "2589"]
[TimeControl "180+1"]
[EndTime "14:53:29 PDT"]
[Termination "manitodeplomo won on time"]

1. e4 {[%clk 0:03:00.9]} 1... e6 {[%clk 0:02:55.3]} 2. d4 {[%clk 0:02:58.3]}
2... d5 {[%clk 0:02:54.9]} 3. exd5 {[%clk 0:02:58]} 3... exd5 {[%clk 0:02:52.8]}
4. Nf3 {[%clk 0:02:58.2]} 4... Bg4 {[%clk 0:02:51.2]} 5. h3 {[%clk 0:02:57.2]}
5... Bxf3 {[%clk 0:02:49.2]} 6. Qxf3 {[%clk 0:02:56.7]} 6... Nf6 {[%clk
0:02:48.8]} 7. Bd3 {[%clk 0:02:52]} 7... Be7 {[%clk 0:02:42.2]} 8. O-O {[%clk
0:02:46.9]} 8... O-O {[%clk 0:02:42.5]} 9. c3 {[%clk 0:02:22.5]} 9... c6 {[%clk
0:02:41.6]} 10. Bg5 {[%clk 0:02:16.4]} 10... Nbd7 {[%clk 0:02:41.3]} 11. Nd2
{[%clk 0:02:15.2]} 11... Re8 {[%clk 0:02:35.6]} 12. Rfe1 {[%clk 0:02:14.5]}
12... Qb6 {[%clk 0:02:30.5]} 13. Rab1 {[%clk 0:02:02.9]} 13... Bf8 {[%clk
0:02:28.7]} 14. b4 {[%clk 0:01:53.2]} 14... a5 {[%clk 0:02:19.5]} 15. a3 {[%clk
0:01:53]} 15... axb4 {[%clk 0:02:18.1]} 16. axb4 {[%clk 0:01:52.9]} 16... h6
{[%clk 0:02:12.2]} 17. Bh4 {[%clk 0:01:49.1]} 17... Qa7 {[%clk 0:02:06.3]} 18.
Re3 {[%clk 0:01:39.7]} 18... Qa2 {[%clk 0:01:55]} 19. Nf1 {[%clk 0:01:11.8]}
19... Rxe3 {[%clk 0:01:38.1]} 20. Nxe3 {[%clk 0:01:03.9]} 20... Qd2 {[%clk
0:01:34.8]} 21. Nf5 {[%clk 0:00:55.8]} 21... Ra3 {[%clk 0:01:16]} 22. Qg3 {[%clk
0:00:24.8]} 22... Rxc3 {[%clk 0:00:48.9]} 23. Nxh6+ {[%clk 0:00:08]} 23... Qxh6
{[%clk 0:00:49.8]} 24. Bxf6 {[%clk 0:00:05]} 24... Nxf6 {[%clk 0:00:47]} 25.
Bh7+ {[%clk 0:00:04.9]} 25... Qxh7 {[%clk 0:00:46.7]} 26. Qxc3 {[%clk
0:00:05.1]} 26... Qxb1+ {[%clk 0:00:46.8]} 0-1

[Event "Late-Titled-Tuesday-Blitz-June-25-2024"]
[Site "Chess.com"]
[Date "2024.06.25"]
[Round "5"]
[White "hansen"]
[Black "Meri-Arabidze"]
[Result "1-0"]
[WhiteElo "2983"]
[BlackElo "2693"]
[TimeControl "180+1"]
[EndTime "14:53:31 PDT"]
[Termination "hansen won by resignation"]

1. c4 {[%clk 0:02:59.8]} 1... Nf6 {[%clk 0:02:59.2]} 2. Nc3 {[%clk 0:02:59.5]}
2... e5 {[%clk 0:02:59.5]} 3. Nf3 {[%clk 0:02:55.1]} 3... Nc6 {[%clk 0:02:59.4]}
4. e3 {[%clk 0:02:51.6]} 4... d5 {[%clk 0:02:58.9]} 5. cxd5 {[%clk 0:02:50.6]}
5... Nxd5 {[%clk 0:02:59.8]} 6. Qc2 {[%clk 0:02:50.8]} 6... Be7 {[%clk
0:02:57.2]} 7. Bb5 {[%clk 0:02:49.1]} 7... f6 {[%clk 0:02:46.5]} 8. d4 {[%clk
0:02:44.2]} 8... Nxc3 {[%clk 0:02:34.9]} 9. bxc3 {[%clk 0:02:42.3]} 9... O-O
{[%clk 0:02:30]} 10. O-O {[%clk 0:02:40.7]} 10... Bg4 {[%clk 0:02:24.6]} 11. Rb1
{[%clk 0:02:37.4]} 11... Bxf3 {[%clk 0:02:21.6]} 12. gxf3 {[%clk 0:02:37.8]}
12... Bd6 {[%clk 0:02:10.8]} 13. Qf5 {[%clk 0:02:29.8]} 13... Ne7 {[%clk
0:02:02.1]} 14. Qh3 {[%clk 0:02:27]} 14... b6 {[%clk 0:01:42.7]} 15. Bd3 {[%clk
0:02:24.1]} 15... f5 {[%clk 0:01:41.1]} 16. Rd1 {[%clk 0:02:13.4]} 16... Qe8
{[%clk 0:01:37.7]} 17. f4 {[%clk 0:02:00.5]} 17... exf4 {[%clk 0:01:33.1]} 18.
e4 {[%clk 0:01:40.5]} 18... Qg6+ {[%clk 0:01:16.6]} 19. Kh1 {[%clk 0:01:40.5]}
19... fxe4 {[%clk 0:01:12.1]} 20. Rg1 {[%clk 0:01:40.9]} 20... Qf5 {[%clk
0:01:00.4]} 21. Qg2 {[%clk 0:01:39.9]} 21... Qf6 {[%clk 0:00:52.4]} 22. Qxe4
{[%clk 0:01:33.6]} 22... Ng6 {[%clk 0:00:44.1]} 23. Qd5+ {[%clk 0:01:30.1]}
23... Kh8 {[%clk 0:00:41.8]} 24. Qh5 {[%clk 0:01:29.3]} 24... Kg8 {[%clk
0:00:21.8]} 25. Bc4+ {[%clk 0:00:55.1]} 25... Kh8 {[%clk 0:00:21.4]} 26. Bd3
{[%clk 0:00:39.8]} 26... Kg8 {[%clk 0:00:21.1]} 27. Rg5 {[%clk 0:00:40.5]} 27...
Rae8 {[%clk 0:00:18.5]} 28. Bd2 {[%clk 0:00:40.7]} 28... f3 {[%clk 0:00:18.1]}
29. Bc4+ {[%clk 0:00:39.1]} 29... Kh8 {[%clk 0:00:17.9]} 30. Qxh7+ {[%clk
0:00:39.2]} 1-0

[Event "Late-Titled-Tuesday-Blitz-June-25-2024"]
[Site "Chess.com"]
[Date "2024.06.25"]
[Round "5"]
[White "hoshiboshi"]
[Black "duone"]
[Result "1-0"]
[WhiteElo "2253"]
[BlackElo "2372"]
[TimeControl "180+1"]
[EndTime "14:53:34 PDT"]
[Termination "hoshiboshi won by resignation"]

1. e4 {[%clk 0:03:00.9]} 1... c5 {[%clk 0:02:54.7]} 2. Nf3 {[%clk 0:03:00.6]}
2... e6 {[%clk 0:02:53.9]} 3. d4 {[%clk 0:03:00.3]} 3... cxd4 {[%clk 0:02:53.9]}
4. Nxd4 {[%clk 0:03:01.2]} 4... Nc6 {[%clk 0:02:53.2]} 5. Nc3 {[%clk 0:03:00.1]}
5... a6 {[%clk 0:02:53]} 6. Nxc6 {[%clk 0:02:48.9]} 6... bxc6 {[%clk 0:02:49.2]}
7. Bd3 {[%clk 0:02:36.2]} 7... Nf6 {[%clk 0:02:45.1]} 8. e5 {[%clk 0:02:34.8]}
8... Nd5 {[%clk 0:02:43.5]} 9. Ne4 {[%clk 0:02:29.9]} 9... Qc7 {[%clk
0:02:42.3]} 10. f4 {[%clk 0:02:22.4]} 10... Rb8 {[%clk 0:02:39.3]} 11. c4 {[%clk
0:02:21.9]} 11... Bb4+ {[%clk 0:02:38.2]} 12. Ke2 {[%clk 0:02:10]} 12... Nb6
{[%clk 0:02:13]} 13. c5 {[%clk 0:01:58.9]} 13... Nd5 {[%clk 0:02:11]} 14. a3
{[%clk 0:01:51.6]} 14... Qa5 {[%clk 0:01:42.4]} 15. Rb1 {[%clk 0:01:23.7]} 15...
Bxc5 {[%clk 0:01:29.7]} 16. b4 {[%clk 0:01:23.4]} 16... Nxb4 {[%clk 0:01:02.3]}
17. axb4 {[%clk 0:01:20.9]} 17... Bxb4 {[%clk 0:01:03.2]} 18. Bd2 {[%clk
0:01:08.8]} 18... O-O {[%clk 0:00:57.8]} 19. Bxb4 {[%clk 0:01:01.2]} 19... Rxb4
{[%clk 0:00:56.1]} 20. Qd2 {[%clk 0:00:53.3]} 20... Rxb1 {[%clk 0:00:53.1]} 21.
Rxb1 {[%clk 0:00:32.7]} 21... Qd5 {[%clk 0:00:51.5]} 22. Bc2 {[%clk 0:00:16.6]}
22... Qc4+ {[%clk 0:00:37.9]} 23. Qd3 {[%clk 0:00:16.1]} 23... Qa2 {[%clk
0:00:38.3]} 24. Nf6+ {[%clk 0:00:14.7]} 1-0

[Event "Late-Titled-Tuesday-Blitz-June-25-2024"]
[Site "Chess.com"]
[Date "2024.06.25"]
[Round "5"]
[White "Zura_19"]
[Black "RaugintaBulba"]
[Result "0-1"]
[WhiteElo "2606"]
[BlackElo "2464"]
[TimeControl "180+1"]
[EndTime "14:53:35 PDT"]
[Termination "RaugintaBulba won on time"]

1. d4 {[%clk 0:03:00.9]} 1... Nf6 {[%clk 0:02:55.8]} 2. Nf3 {[%clk 0:03:00.6]}
2... c5 {[%clk 0:02:56.5]} 3. e3 {[%clk 0:02:58.2]} 3... g6 {[%clk 0:02:55.9]}
4. Bd3 {[%clk 0:02:54.5]} 4... Bg7 {[%clk 0:02:56.3]} 5. c3 {[%clk 0:02:54.8]}
5... O-O {[%clk 0:02:56.9]} 6. O-O {[%clk 0:02:54]} 6... b6 {[%clk 0:02:57.4]}
7. e4 {[%clk 0:02:53.6]} 7... Bb7 {[%clk 0:02:57.6]} 8. e5 {[%clk 0:02:53.6]}
8... Nd5 {[%clk 0:02:56.9]} 9. a3 {[%clk 0:02:50.2]} 9... cxd4 {[%clk
0:02:54.7]} 10. cxd4 {[%clk 0:02:50.3]} 10... d6 {[%clk 0:02:52.1]} 11. Re1
{[%clk 0:02:44.1]} 11... dxe5 {[%clk 0:02:48.5]} 12. dxe5 {[%clk 0:02:43.2]}
12... Nc7 {[%clk 0:02:47]} 13. Nc3 {[%clk 0:02:39.7]} 13... Nd7 {[%clk
0:02:44.7]} 14. Bf4 {[%clk 0:02:17.7]} 14... Nc5 {[%clk 0:02:39.7]} 15. Bc2
{[%clk 0:02:15.8]} 15... N7e6 {[%clk 0:02:21.2]} 16. Bg3 {[%clk 0:02:06.4]}
16... Qc7 {[%clk 0:02:19.5]} 17. b4 {[%clk 0:02:00.7]} 17... Rfd8 {[%clk
0:02:14.6]} 18. Qe2 {[%clk 0:01:55.4]} 18... Bxf3 {[%clk 0:02:06.6]} 19. Qxf3
{[%clk 0:01:53.1]} 19... Nd4 {[%clk 0:02:06.1]} 20. Qd1 {[%clk 0:01:43.7]} 20...
Nce6 {[%clk 0:01:46.5]} 21. Re3 {[%clk 0:01:27.6]} 21... Bh6 {[%clk 0:01:45.3]}
22. Rd3 {[%clk 0:01:26.3]} 22... Rac8 {[%clk 0:01:27.4]} 23. Ba4 {[%clk
0:01:18.4]} 23... a6 {[%clk 0:01:20.1]} 24. Ne4 {[%clk 0:00:49.9]} 24... b5
{[%clk 0:01:06.8]} 25. Bb3 {[%clk 0:00:47.1]} 25... Nxb3 {[%clk 0:01:06.8]} 26.
Rxd8+ {[%clk 0:00:44]} 26... Qxd8 {[%clk 0:00:43.9]} 27. Qxb3 {[%clk 0:00:40.8]}
27... Qd4 {[%clk 0:00:43.3]} 0-1

[Event "Late-Titled-Tuesday-Blitz-June-25-2024"]
[Site "Chess.com"]
[Date "2024.06.25"]
[Round "5"]
[White "KChor05"]
[Black "Alexander_Khlebovich"]
[Result "0-1"]
[WhiteElo "2617"]
[BlackElo "2827"]
[TimeControl "180+1"]
[EndTime "14:53:37 PDT"]
[Termination "Alexander_Khlebovich won by resignation"]

1. e4 {[%clk 0:03:00.9]} 1... c5 {[%clk 0:02:59.5]} 2. Nf3 {[%clk 0:03:00.8]}
2... d6 {[%clk 0:02:59.8]} 3. d4 {[%clk 0:03:01.2]} 3... cxd4 {[%clk 0:03:00.7]}
4. Nxd4 {[%clk 0:03:01.9]} 4... Nf6 {[%clk 0:03:00.8]} 5. Nc3 {[%clk 0:03:01.9]}
5... a6 {[%clk 0:03:01.2]} 6. Be2 {[%clk 0:03:01.2]} 6... e5 {[%clk 0:03:01]} 7.
Nb3 {[%clk 0:03:01]} 7... Be7 {[%clk 0:03:01.1]} 8. Be3 {[%clk 0:03:00.8]} 8...
Be6 {[%clk 0:03:01]} 9. Nd5 {[%clk 0:03:01.1]} 9... Nbd7 {[%clk 0:02:56]} 10.
Qd3 {[%clk 0:03:01]} 10... Bxd5 {[%clk 0:02:50.2]} 11. exd5 {[%clk 0:02:59.7]}
11... b6 {[%clk 0:02:50.6]} 12. O-O {[%clk 0:02:54.5]} 12... Nc5 {[%clk
0:02:49.8]} 13. Nxc5 {[%clk 0:02:45.6]} 13... bxc5 {[%clk 0:02:50.7]} 14. c4
{[%clk 0:02:44.2]} 14... O-O {[%clk 0:02:48.8]} 15. Rab1 {[%clk 0:02:41]} 15...
a5 {[%clk 0:02:42.2]} 16. b3 {[%clk 0:02:34.6]} 16... Nd7 {[%clk 0:02:38.9]} 17.
Bg4 {[%clk 0:02:28.8]} 17... g6 {[%clk 0:02:36.9]} 18. Bh6 {[%clk 0:02:25.5]}
18... Re8 {[%clk 0:02:36.5]} 19. f4 {[%clk 0:02:15.1]} 19... e4 {[%clk
0:02:22.9]} 20. Qh3 {[%clk 0:02:04.2]} 20... Nf6 {[%clk 0:01:55]} 21. f5 {[%clk
0:01:59.8]} 21... Nxg4 {[%clk 0:01:39.7]} 22. fxg6 {[%clk 0:01:25.1]} 22... hxg6
{[%clk 0:01:24.1]} 23. Qxg4 {[%clk 0:01:23.4]} 23... Bf6 {[%clk 0:01:22.6]} 24.
Rbe1 {[%clk 0:01:18.1]} 24... Qe7 {[%clk 0:01:09.4]} 25. Be3 {[%clk 0:00:56.3]}
25... Bd4 {[%clk 0:01:02.2]} 26. h4 {[%clk 0:00:55.9]} 26... Qe5 {[%clk
0:00:57.1]} 27. Kh1 {[%clk 0:00:45.6]} 27... Kg7 {[%clk 0:00:49]} 28. Bg5 {[%clk
0:00:38.9]} 28... f5 {[%clk 0:00:46.6]} 29. Qh3 {[%clk 0:00:32.7]} 29... Rh8
{[%clk 0:00:46.3]} 30. g4 {[%clk 0:00:24.1]} 30... Raf8 {[%clk 0:00:45.1]} 31.
Bf4 {[%clk 0:00:17.5]} 31... Qe7 {[%clk 0:00:40]} 32. Bg5 {[%clk 0:00:17.7]}
32... Qxg5 {[%clk 0:00:40]} 0-1

[Event "Late-Titled-Tuesday-Blitz-June-25-2024"]
[Site "Chess.com"]
[Date "2024.06.25"]
[Round "5"]
[White "IndianSchoolOfSuffering"]
[Black "MaestroCheck"]
[Result "0-1"]
[WhiteElo "2493"]
[BlackElo "2644"]
[TimeControl "180+1"]
[EndTime "14:53:38 PDT"]
[Termination "MaestroCheck won by checkmate"]

1. e4 {[%clk 0:03:00.9]} 1... c5 {[%clk 0:02:57.3]} 2. Nf3 {[%clk 0:02:57.5]}
2... e6 {[%clk 0:02:55.6]} 3. d4 {[%clk 0:02:54.7]} 3... cxd4 {[%clk 0:02:56.5]}
4. Nxd4 {[%clk 0:02:55]} 4... Nf6 {[%clk 0:02:56.8]} 5. Nc3 {[%clk 0:02:53.7]}
5... Nc6 {[%clk 0:02:56.1]} 6. Ndb5 {[%clk 0:02:51.9]} 6... Bb4 {[%clk
0:02:51.3]} 7. a3 {[%clk 0:02:50]} 7... Bxc3+ {[%clk 0:02:51.2]} 8. Nxc3 {[%clk
0:02:49.6]} 8... d5 {[%clk 0:02:51.7]} 9. exd5 {[%clk 0:02:49.8]} 9... exd5
{[%clk 0:02:52.5]} 10. Bd3 {[%clk 0:02:47.6]} 10... O-O {[%clk 0:02:51.5]} 11.
O-O {[%clk 0:02:47.2]} 11... Bg4 {[%clk 0:02:50.8]} 12. f3 {[%clk 0:02:46.6]}
12... Bh5 {[%clk 0:02:46]} 13. Kh1 {[%clk 0:02:45.5]} 13... Bg6 {[%clk
0:02:43.4]} 14. Bg5 {[%clk 0:02:42.7]} 14... d4 {[%clk 0:01:44.7]} 15. Ne4
{[%clk 0:02:31.7]} 15... Re8 {[%clk 0:01:28]} 16. b4 {[%clk 0:01:54.2]} 16... a6
{[%clk 0:01:21.4]} 17. Rb1 {[%clk 0:01:51.8]} 17... Ne5 {[%clk 0:01:05.8]} 18.
Qd2 {[%clk 0:01:32.8]} 18... Nxe4 {[%clk 0:01:02.3]} 19. Bxe4 {[%clk 0:01:25.9]}
19... Qb6 {[%clk 0:00:56.4]} 20. Bxg6 {[%clk 0:01:20.1]} 20... hxg6 {[%clk
0:00:52.6]} 21. Rbd1 {[%clk 0:01:20]} 21... f6 {[%clk 0:00:51.4]} 22. Bf4 {[%clk
0:01:18.4]} 22... Rad8 {[%clk 0:00:49.9]} 23. Bxe5 {[%clk 0:01:18.4]} 23... Rxe5
{[%clk 0:00:50.3]} 24. c4 {[%clk 0:01:11.9]} 24... d3 {[%clk 0:00:46.8]} 25. c5
{[%clk 0:01:07.1]} 25... Qe6 {[%clk 0:00:42.7]} 26. Rfe1 {[%clk 0:00:58.9]}
26... Rd4 {[%clk 0:00:38.1]} 27. Rxe5 {[%clk 0:00:58.5]} 27... Qxe5 {[%clk
0:00:37.2]} 28. Re1 {[%clk 0:00:58.3]} 28... Qd5 {[%clk 0:00:35]} 29. Kg1 {[%clk
0:00:52.8]} 29... Rc4 {[%clk 0:00:32.9]} 30. Re3 {[%clk 0:00:51.6]} 30... Qd4
{[%clk 0:00:15.1]} 31. Qxd3 {[%clk 0:00:45.3]} 31... Rc1+ {[%clk 0:00:15.1]} 32.
Kf2 {[%clk 0:00:44.2]} 32... Qh4+ {[%clk 0:00:15.6]} 33. Ke2 {[%clk 0:00:36.3]}
33... Qe1# {[%clk 0:00:15.1]} 0-1